[Event "Titled Tuesday Blitz January 17 Late 2023"]
[White "Winterberg, Lukas"]
[Black "Boyer, Mahel"]
[WhiteFideId "24622702"]
[BlackFideId "45102422"]
[WhiteElo "2402"]
[BlackElo "2489"]
[Result "1-0"]
[Round "04"]
[TimeControl "180+2"]
[Date "2023.01.17"]
[WhiteClock "0:00:15"]
[BlackClock "0:00:01"]

1. d4 {[%clk 0:03:00]}  d6 {[%clk 0:03:00]} 2. Nf3 {[%clk 0:03:01]}  Nd7 {[%clk 0:03:00]} 3. c4 {[%clk 0:03:01]}  e5 {[%clk 0:02:59]} 4. Nc3 {[%clk 0:03:02]}  g6 {[%clk 0:02:59]} 5. e4 {[%clk 0:03:02]}  Bg7 {[%clk 0:02:58]} 6. Be2 {[%clk 0:03:02]}  Ne7 {[%clk 0:02:58]} 7. Be3 {[%clk 0:03:02]}  O-O {[%clk 0:02:57]} 8. Qd2 {[%clk 0:03:00]}  f5 {[%clk 0:02:57]} 9. dxe5 {[%clk 0:02:58]}  Nxe5 {[%clk 0:02:56]} 10. Nxe5 {[%clk 0:02:55]}  Bxe5 {[%clk 0:02:56]} 11. f4 {[%clk 0:02:48]}  Bg7 {[%clk 0:02:53]} 12. O-O {[%clk 0:02:35]}  fxe4 {[%clk 0:02:52]} 13. Nxe4 {[%clk 0:02:33]}  Nf5 {[%clk 0:02:52]} 14. Bf2 {[%clk 0:02:33]}  c6 {[%clk 0:02:50]} 15. Rad1 {[%clk 0:02:29]}  Re8 {[%clk 0:02:48]} 16. Bf3 {[%clk 0:02:24]}  Be6 {[%clk 0:02:25]} 17. b3 {[%clk 0:02:22]}  d5 {[%clk 0:02:25]} 18. Ng5 {[%clk 0:02:19]}  d4 {[%clk 0:02:25]} 19. Rfe1 {[%clk 0:02:17]}  Qd6 {[%clk 0:02:14]} 20. g4 {[%clk 0:02:11]}  Nh6 {[%clk 0:02:09]} 21. Bxd4 {[%clk 0:01:55]}  Qxd4+ {[%clk 0:01:30]} 22. Qxd4 {[%clk 0:01:56]}  Bxd4+ {[%clk 0:01:31]} 23. Rxd4 {[%clk 0:01:54]}  Bxg4 {[%clk 0:01:31]} 24. Rxe8+ {[%clk 0:01:49]}  Rxe8 {[%clk 0:01:32]} 25. Bxg4 {[%clk 0:01:47]}  Nxg4 {[%clk 0:01:32]} 26. Rd7 {[%clk 0:01:48]}  h6 {[%clk 0:00:55]} 27. Nf3 {[%clk 0:01:38]}  Re2 {[%clk 0:00:48]} 28. Ne5 {[%clk 0:01:33]}  Ne3 {[%clk 0:00:04]} 29. h4 {[%clk 0:01:14]}  Rg2+ {[%clk 0:00:04]} 30. Kh1 {[%clk 0:01:13]}  Rxa2 {[%clk 0:00:03]} 31. Rxb7 {[%clk 0:01:08]}  Nf5 {[%clk 0:00:01]} 32. Nxg6 {[%clk 0:01:05]}  Ng3+ {[%clk 0:00:01]} 33. Kg1 {[%clk 0:01:06]}  a5 {[%clk 0:00:01]} 34. Ne7+ {[%clk 0:01:01]}  Kf8 {[%clk 0:00:01]} 35. Nxc6 {[%clk 0:01:02]}  Ne2+ {[%clk 0:00:01]} 36. Kf2 {[%clk 0:01:02]}  Nd4+ {[%clk 0:00:01]} 37. Ke3 {[%clk 0:01:01]}  Nxc6 {[%clk 0:00:02]} 38. Rb6 {[%clk 0:00:59]}  Ne7 {[%clk 0:00:02]} 39. Ke4 {[%clk 0:00:57]}  Re2+ {[%clk 0:00:01]} 40. Kf3 {[%clk 0:00:55]}  Rb2 {[%clk 0:00:02]} 41. c5 {[%clk 0:00:52]}  a4 {[%clk 0:00:01]} 42. bxa4 {[%clk 0:00:51]}  Ra2 {[%clk 0:00:02]} 43. Rxh6 {[%clk 0:00:48]}  Rxa4 {[%clk 0:00:02]} 44. h5 {[%clk 0:00:46]}  Rc4 {[%clk 0:00:02]} 45. Rf6+ {[%clk 0:00:43]}  Kg7 {[%clk 0:00:01]} 46. Re6 {[%clk 0:00:43]}  Kf7 {[%clk 0:00:02]} 47. Re5 {[%clk 0:00:43]}  Nc6 {[%clk 0:00:02]} 48. Rd5 {[%clk 0:00:41]}  Ne7 {[%clk 0:00:02]} 49. Re5 {[%clk 0:00:41]}  Nc6 {[%clk 0:00:01]} 50. Rg5 {[%clk 0:00:41]}  Nd4+ {[%clk 0:00:01]} 51. Kg4 {[%clk 0:00:41]}  Ne6 {[%clk 0:00:01]} 52. Rf5+ {[%clk 0:00:40]}  Kg7 {[%clk 0:00:01]} 53. h6+ {[%clk 0:00:38]}  Kh7 {[%clk 0:00:01]} 54. Rf7+ {[%clk 0:00:39]}  Kg8 {[%clk 0:00:01]} 55. Re7 {[%clk 0:00:37]}  Nxc5 {[%clk 0:00:02]} 56. Rc7 {[%clk 0:00:32]}  Rc3 {[%clk 0:00:01]} 57. f5 {[%clk 0:00:28]}  Kh8 {[%clk 0:00:01]} 58. f6 {[%clk 0:00:27]}  Rc1 {[%clk 0:00:01]} 59. f7 {[%clk 0:00:21]}  Rg1+ {[%clk 0:00:01]} 60. Kh5 {[%clk 0:00:20]}  Rf1 {[%clk 0:00:02]} 61. Rc8+ {[%clk 0:00:20]}  Kh7 {[%clk 0:00:02]} 62. f8=Q {[%clk 0:00:19]}  Rxf8 {[%clk 0:00:03]} 63. Rxf8 {[%clk 0:00:19]}  Ne6 {[%clk 0:00:04]} 64. Rf7+ {[%clk 0:00:18]}  Kg8 {[%clk 0:00:04]} 65. Kg6 {[%clk 0:00:17]}  Kh8 {[%clk 0:00:01]} 66. Rf6 {[%clk 0:00:15]} 1-0


[Site "https://www.chess.com"]

[Event "Titled Tuesday Blitz January 17 Late 2023"]
[White "Sukandar, Irine Kharisma"]
[Black "Skvortsov, Andrei"]
[WhiteFideId "7101937"]
[BlackFideId "24108600"]
[WhiteElo "2390"]
[BlackElo "2313"]
[Result "0-1"]
[Round "04"]
[TimeControl "180+2"]
[Date "2023.01.17"]
[WhiteClock "0:02:12"]
[BlackClock "0:02:06"]

1. d4 {[%clk 0:02:59]}  g6 {[%clk 0:02:47]} 2. Nc3 {[%clk 0:02:57]}  d5 {[%clk 0:02:46]} 3. Bf4 {[%clk 0:02:56]}  c6 {[%clk 0:02:42]} 4. e4 {[%clk 0:02:48]}  Qb6 {[%clk 0:02:36]} 5. exd5 {[%clk 0:02:34]}  Qxb2 {[%clk 0:02:35]} 6. Nge2 {[%clk 0:02:33]}  Qa3 {[%clk 0:02:23]} 7. dxc6 {[%clk 0:02:29]}  bxc6 {[%clk 0:02:24]} 8. Rb1 {[%clk 0:02:21]}  Nd7 {[%clk 0:02:23]} 9. d5 {[%clk 0:02:13]}  Bg7 {[%clk 0:02:16]} 10. Rb2 {[%clk 0:02:12]}  Qxb2 {[%clk 0:02:06]} 0-1


[Site "https://www.chess.com"]

[Event "Titled Tuesday Blitz January 17 Late 2023"]
[White "Domingo Nunez, Ruben"]
[Black "Marczuk, Dominik"]
[WhiteFideId "22245570"]
[BlackFideId "1111264"]
[WhiteElo "2416"]
[BlackElo "2253"]
[Result "1-0"]
[Round "04"]
[TimeControl "180+2"]
[Date "2023.01.17"]
[WhiteClock "0:01:17"]
[BlackClock "0:00:08"]

1. e4 {[%clk 0:03:00]}  c5 {[%clk 0:02:58]} 2. d4 {[%clk 0:03:01]}  cxd4 {[%clk 0:02:58]} 3. c3 {[%clk 0:03:02]}  d3 {[%clk 0:02:59]} 4. Bxd3 {[%clk 0:03:01]}  Nc6 {[%clk 0:02:59]} 5. c4 {[%clk 0:03:02]}  g6 {[%clk 0:03:00]} 6. h3 {[%clk 0:03:03]}  Bg7 {[%clk 0:03:00]} 7. Nf3 {[%clk 0:03:03]}  d6 {[%clk 0:03:01]} 8. O-O {[%clk 0:03:04]}  Nf6 {[%clk 0:03:02]} 9. Nc3 {[%clk 0:03:05]}  O-O {[%clk 0:03:02]} 10. Be3 {[%clk 0:03:05]}  Bd7 {[%clk 0:02:58]} 11. Rc1 {[%clk 0:03:06]}  Rc8 {[%clk 0:02:58]} 12. b3 {[%clk 0:03:07]}  a6 {[%clk 0:02:59]} 13. Qe2 {[%clk 0:03:07]}  Qa5 {[%clk 0:02:59]} 14. Rfd1 {[%clk 0:03:07]}  Ne5 {[%clk 0:02:59]} 15. Bb1 {[%clk 0:03:05]}  Nxf3+ {[%clk 0:02:59]} 16. Qxf3 {[%clk 0:03:06]}  Bc6 {[%clk 0:03:00]} 17. Nd5 {[%clk 0:03:06]}  Bxd5 {[%clk 0:02:56]} 18. exd5 {[%clk 0:03:07]}  Nd7 {[%clk 0:02:55]} 19. h4 {[%clk 0:03:05]}  b5 {[%clk 0:02:54]} 20. h5 {[%clk 0:02:50]}  bxc4 {[%clk 0:02:53]} 21. bxc4 {[%clk 0:02:51]}  Ne5 {[%clk 0:02:53]} 22. Qe2 {[%clk 0:02:52]}  Qa4 {[%clk 0:02:46]} 23. c5 {[%clk 0:02:48]}  dxc5 {[%clk 0:02:41]} 24. Bxc5 {[%clk 0:02:49]}  Rfe8 {[%clk 0:02:10]} 25. Be3 {[%clk 0:02:46]}  Qb5 {[%clk 0:01:59]} 26. Rc2 {[%clk 0:01:51]}  Rxc2 {[%clk 0:01:42]} 27. Qxc2 {[%clk 0:01:51]}  Rd8 {[%clk 0:01:40]} 28. Qe4 {[%clk 0:01:31]}  Qc4 {[%clk 0:01:24]} 29. Rd4 {[%clk 0:01:28]}  Qe2 {[%clk 0:01:21]} 30. h6 {[%clk 0:01:22]}  Bf6 {[%clk 0:00:42]} 31. Bc2 {[%clk 0:01:22]}  Rc8 {[%clk 0:00:35]} 32. Bb3 {[%clk 0:01:21]}  Rc3 {[%clk 0:00:09]} 33. d6 {[%clk 0:01:18]}  exd6 {[%clk 0:00:08]} 34. Qa8+ {[%clk 0:01:17]} 1-0


[Site "https://www.chess.com"]

[Event "Titled Tuesday Blitz January 17 Late 2023"]
[White "Godzwon, Iwo"]
[Black "Gasparyan, David"]
[WhiteFideId "21802483"]
[BlackFideId "13311980"]
[WhiteElo "2394"]
[BlackElo "2142"]
[Result "1-0"]
[Round "04"]
[TimeControl "180+2"]
[Date "2023.01.17"]
[WhiteClock "0:00:39"]
[BlackClock "0:00:21"]

1. e4 {[%clk 0:03:00]}  d6 {[%clk 0:02:51]} 2. d4 {[%clk 0:03:00]}  Nd7 {[%clk 0:02:51]} 3. Nc3 {[%clk 0:03:01]}  g6 {[%clk 0:02:50]} 4. f4 {[%clk 0:03:01]}  Bg7 {[%clk 0:02:51]} 5. Nf3 {[%clk 0:03:01]}  c6 {[%clk 0:02:49]} 6. Bd3 {[%clk 0:03:00]}  Qc7 {[%clk 0:02:49]} 7. O-O {[%clk 0:02:59]}  e5 {[%clk 0:02:49]} 8. Be3 {[%clk 0:02:58]}  Ngf6 {[%clk 0:02:44]} 9. Qd2 {[%clk 0:02:46]}  Ng4 {[%clk 0:02:42]} 10. d5 {[%clk 0:02:42]}  Nxe3 {[%clk 0:02:41]} 11. Qxe3 {[%clk 0:02:42]}  exf4 {[%clk 0:02:40]} 12. Qxf4 {[%clk 0:02:41]}  O-O {[%clk 0:02:41]} 13. Kh1 {[%clk 0:02:40]}  Ne5 {[%clk 0:02:39]} 14. Rad1 {[%clk 0:02:35]}  Bg4 {[%clk 0:02:30]} 15. Be2 {[%clk 0:02:34]}  Bxf3 {[%clk 0:02:18]} 16. gxf3 {[%clk 0:02:26]}  f5 {[%clk 0:02:17]} 17. Qd2 {[%clk 0:02:21]}  Rad8 {[%clk 0:02:13]} 18. f4 {[%clk 0:02:16]}  Ng4 {[%clk 0:02:06]} 19. Bxg4 {[%clk 0:02:16]}  fxg4 {[%clk 0:02:07]} 20. Qd3 {[%clk 0:02:11]}  Qe7 {[%clk 0:02:03]} 21. Rde1 {[%clk 0:02:05]}  Qh4 {[%clk 0:01:53]} 22. Nd1 {[%clk 0:01:57]}  Rxf4 {[%clk 0:01:51]} 23. c3 {[%clk 0:01:54]}  Be5 {[%clk 0:01:49]} 24. Rxf4 {[%clk 0:01:38]}  Bxf4 {[%clk 0:01:43]} 25. Re2 {[%clk 0:01:39]}  Rf8 {[%clk 0:01:37]} 26. Kg1 {[%clk 0:01:30]}  g3 {[%clk 0:01:33]} 27. hxg3 {[%clk 0:01:29]}  Bxg3 {[%clk 0:01:31]} 28. Rg2 {[%clk 0:01:27]}  c5 {[%clk 0:01:24]} 29. Rxg3 {[%clk 0:01:18]}  Qh5 {[%clk 0:01:21]} 30. Nf2 {[%clk 0:01:15]}  Qh6 {[%clk 0:01:15]} 31. Qe3 {[%clk 0:01:15]}  Qh4 {[%clk 0:01:13]} 32. Rh3 {[%clk 0:01:06]}  Qf6 {[%clk 0:01:08]} 33. Kg2 {[%clk 0:01:05]}  g5 {[%clk 0:01:07]} 34. Rf3 {[%clk 0:01:04]}  Qh6 {[%clk 0:00:59]} 35. Rxf8+ {[%clk 0:00:59]}  Kxf8 {[%clk 0:00:59]} 36. Nh3 {[%clk 0:00:58]}  Qg6 {[%clk 0:00:54]} 37. Kg3 {[%clk 0:00:58]}  h6 {[%clk 0:00:53]} 38. Qf3+ {[%clk 0:00:56]}  Kg7 {[%clk 0:00:48]} 39. Qf5 {[%clk 0:00:55]}  Qh5 {[%clk 0:00:44]} 40. Qd7+ {[%clk 0:00:53]}  Kg8 {[%clk 0:00:42]} 41. Nf2 {[%clk 0:00:43]}  Qh4+ {[%clk 0:00:41]} 42. Kg2 {[%clk 0:00:44]}  Qf4 {[%clk 0:00:37]} 43. Qc8+ {[%clk 0:00:44]}  Kg7 {[%clk 0:00:36]} 44. Qxb7+ {[%clk 0:00:45]}  Kg6 {[%clk 0:00:36]} 45. Qd7 {[%clk 0:00:45]}  h5 {[%clk 0:00:30]} 46. Qe8+ {[%clk 0:00:43]}  Kh6 {[%clk 0:00:29]} 47. Qe6+ {[%clk 0:00:43]}  Kg7 {[%clk 0:00:28]} 48. e5 {[%clk 0:00:42]}  dxe5 {[%clk 0:00:23]} 49. d6 {[%clk 0:00:42]}  g4 {[%clk 0:00:23]} 50. d7 {[%clk 0:00:39]}  Qf3+ {[%clk 0:00:23]} 51. Kg1 {[%clk 0:00:38]}  g3 {[%clk 0:00:24]} 52. Qxe5+ {[%clk 0:00:37]}  Kh7 {[%clk 0:00:20]} 53. Qe4+ {[%clk 0:00:37]}  Qxe4 {[%clk 0:00:20]} 54. Nxe4 {[%clk 0:00:38]}  h4 {[%clk 0:00:20]} 55. d8=Q {[%clk 0:00:38]}  Kg6 {[%clk 0:00:20]} 56. Qxh4 {[%clk 0:00:39]}  g2 {[%clk 0:00:20]} 57. Qg3+ {[%clk 0:00:40]}  Kf5 {[%clk 0:00:21]} 58. Qxg2 {[%clk 0:00:40]}  Kf4 {[%clk 0:00:22]} 59. Nxc5 {[%clk 0:00:40]}  a6 {[%clk 0:00:21]} 60. Qe4+ {[%clk 0:00:41]}  Kg3 {[%clk 0:00:21]} 61. Nd3 {[%clk 0:00:40]}  Kh3 {[%clk 0:00:21]} 62. Nf2+ {[%clk 0:00:39]}  Kg3 {[%clk 0:00:21]} 63. Qg4# {[%clk 0:00:39]} 1-0


[Site "https://www.chess.com"]

[Event "Titled Tuesday Blitz January 17 Late 2023"]
[White "Urbina Perez, Juan Antonio"]
[Black "Haydon, David L"]
[WhiteFideId "2217368"]
[BlackFideId "415405"]
[WhiteElo "2266"]
[BlackElo "2253"]
[Result "0-1"]
[Round "04"]
[TimeControl "180+2"]
[Date "2023.01.17"]
[WhiteClock "0:00:55"]
[BlackClock "0:01:57"]

1. e4 {[%clk 0:02:56]}  c6 {[%clk 0:02:59]} 2. d4 {[%clk 0:02:52]}  d5 {[%clk 0:02:58]} 3. Nd2 {[%clk 0:02:53]}  dxe4 {[%clk 0:02:57]} 4. Nxe4 {[%clk 0:02:53]}  Nf6 {[%clk 0:02:57]} 5. Nxf6+ {[%clk 0:02:53]}  exf6 {[%clk 0:02:58]} 6. c3 {[%clk 0:02:52]}  Bd6 {[%clk 0:02:58]} 7. Bd3 {[%clk 0:02:53]}  O-O {[%clk 0:02:57]} 8. Ne2 {[%clk 0:02:53]}  Re8 {[%clk 0:02:57]} 9. Qc2 {[%clk 0:02:54]}  g6 {[%clk 0:02:56]} 10. Be3 {[%clk 0:02:49]}  Nd7 {[%clk 0:02:56]} 11. O-O-O {[%clk 0:02:48]}  f5 {[%clk 0:02:56]} 12. g3 {[%clk 0:02:40]}  Nf6 {[%clk 0:02:56]} 13. Bf4 {[%clk 0:02:32]}  Be6 {[%clk 0:02:53]} 14. Kb1 {[%clk 0:02:31]}  Bd5 {[%clk 0:02:51]} 15. Rhe1 {[%clk 0:02:25]}  Ng4 {[%clk 0:02:50]} 16. Bxd6 {[%clk 0:02:18]}  Qxd6 {[%clk 0:02:49]} 17. Nf4 {[%clk 0:02:18]}  Nxh2 {[%clk 0:02:42]} 18. Nxd5 {[%clk 0:02:10]}  cxd5 {[%clk 0:02:37]} 19. Rh1 {[%clk 0:02:04]}  Ng4 {[%clk 0:02:35]} 20. Rh4 {[%clk 0:01:56]}  h5 {[%clk 0:02:31]} 21. Ka1 {[%clk 0:01:46]}  Re7 {[%clk 0:02:24]} 22. a3 {[%clk 0:01:44]}  Rae8 {[%clk 0:02:23]} 23. Ka2 {[%clk 0:01:38]}  Re1 {[%clk 0:02:21]} 24. Rxe1 {[%clk 0:01:37]}  Rxe1 {[%clk 0:02:20]} 25. Bxf5 {[%clk 0:01:38]}  gxf5 {[%clk 0:02:18]} 26. Qxf5 {[%clk 0:01:39]}  Qg6 {[%clk 0:02:10]} 27. Qc8+ {[%clk 0:01:35]}  Kg7 {[%clk 0:02:08]} 28. Qxb7 {[%clk 0:01:36]}  Nf6 {[%clk 0:02:00]} 29. Qxa7 {[%clk 0:01:31]}  Qb1+ {[%clk 0:01:59]} 30. Kb3 {[%clk 0:01:30]}  Re2 {[%clk 0:01:59]} 31. Qa6 {[%clk 0:00:56]}  Rxb2+ {[%clk 0:01:58]} 32. Ka4 {[%clk 0:00:57]}  Qc2+ {[%clk 0:01:57]} 33. Ka5 {[%clk 0:00:55]}  Qxc3+ {[%clk 0:01:57]} 34. Ka4 {[%clk 0:00:55]}  Qb3+ {[%clk 0:01:57]} 0-1


[Site "https://www.chess.com"]

[Event "Titled Tuesday Blitz January 17 Late 2023"]
[White "Golding, Alex"]
[Black "Djokic, Mihailo"]
[WhiteFideId "427241"]
[BlackFideId "976440"]
[WhiteElo "2318"]
[BlackElo "2192"]
[Result "0-1"]
[Round "04"]
[TimeControl "180+2"]
[Date "2023.01.17"]
[WhiteClock "0:00:02"]
[BlackClock "0:00:06"]

1. e4 {[%clk 0:02:56]}  c5 {[%clk 0:02:57]} 2. Nf3 {[%clk 0:02:56]}  d6 {[%clk 0:02:57]} 3. Bb5+ {[%clk 0:02:56]}  Bd7 {[%clk 0:02:57]} 4. Bxd7+ {[%clk 0:02:57]}  Qxd7 {[%clk 0:02:58]} 5. O-O {[%clk 0:02:57]}  Nc6 {[%clk 0:02:59]} 6. b3 {[%clk 0:02:56]}  Nf6 {[%clk 0:02:59]} 7. Re1 {[%clk 0:02:55]}  g6 {[%clk 0:03:00]} 8. Bb2 {[%clk 0:02:55]}  Bg7 {[%clk 0:03:00]} 9. d3 {[%clk 0:02:54]}  O-O {[%clk 0:03:01]} 10. a4 {[%clk 0:02:52]}  Rfd8 {[%clk 0:03:00]} 11. Nbd2 {[%clk 0:02:46]}  Nxe4 {[%clk 0:02:54]} 12. Bxg7 {[%clk 0:02:44]}  Nxd2 {[%clk 0:02:54]} 13. Bh6 {[%clk 0:02:40]}  Nxf3+ {[%clk 0:02:53]} 14. Qxf3 {[%clk 0:02:41]}  Nd4 {[%clk 0:02:52]} 15. Qd1 {[%clk 0:02:37]}  Nf5 {[%clk 0:02:39]} 16. Bd2 {[%clk 0:02:36]}  e5 {[%clk 0:02:34]} 17. b4 {[%clk 0:02:26]}  cxb4 {[%clk 0:02:31]} 18. Bxb4 {[%clk 0:02:27]}  Rac8 {[%clk 0:02:31]} 19. c3 {[%clk 0:02:23]}  Re8 {[%clk 0:02:31]} 20. a5 {[%clk 0:02:17]}  d5 {[%clk 0:02:30]} 21. Qg4 {[%clk 0:02:06]}  h5 {[%clk 0:02:21]} 22. Qf3 {[%clk 0:02:01]}  Qc6 {[%clk 0:02:16]} 23. h3 {[%clk 0:01:53]}  e4 {[%clk 0:02:15]} 24. Qe2 {[%clk 0:01:46]}  e3 {[%clk 0:02:13]} 25. d4 {[%clk 0:01:33]}  Qc4 {[%clk 0:02:02]} 26. Qxc4 {[%clk 0:01:14]}  Rxc4 {[%clk 0:02:01]} 27. fxe3 {[%clk 0:01:13]}  Rxe3 {[%clk 0:02:00]} 28. Rxe3 {[%clk 0:01:13]}  Nxe3 {[%clk 0:02:00]} 29. a6 {[%clk 0:01:03]}  bxa6 {[%clk 0:01:33]} 30. Rxa6 {[%clk 0:01:01]}  Nc2 {[%clk 0:01:32]} 31. Bc5 {[%clk 0:00:59]}  Rxc3 {[%clk 0:01:31]} 32. Rxa7 {[%clk 0:00:59]}  Ne3 {[%clk 0:01:29]} 33. Kf2 {[%clk 0:00:50]}  Nf5 {[%clk 0:01:26]} 34. Rd7 {[%clk 0:00:44]}  Rc2+ {[%clk 0:01:25]} 35. Kf3 {[%clk 0:00:30]}  Nh4+ {[%clk 0:01:25]} 36. Kg3 {[%clk 0:00:30]}  g5 {[%clk 0:01:22]} 37. Kh2 {[%clk 0:00:28]}  Nxg2 {[%clk 0:01:11]} 38. Kg1 {[%clk 0:00:15]}  Nf4 {[%clk 0:01:11]} 39. Bd6 {[%clk 0:00:13]}  Nxh3+ {[%clk 0:01:11]} 40. Kf1 {[%clk 0:00:14]}  h4 {[%clk 0:01:04]} 41. Be5 {[%clk 0:00:13]}  Rf2+ {[%clk 0:01:03]} 42. Ke1 {[%clk 0:00:12]}  g4 {[%clk 0:00:55]} 43. Rd8+ {[%clk 0:00:10]}  Kh7 {[%clk 0:00:55]} 44. Rh8+ {[%clk 0:00:08]}  Kg6 {[%clk 0:00:56]} 45. Rxh4 {[%clk 0:00:07]}  Rg2 {[%clk 0:00:49]} 46. Rh8 {[%clk 0:00:06]}  Ng5 {[%clk 0:00:46]} 47. Kf1 {[%clk 0:00:04]}  Rc2 {[%clk 0:00:43]} 48. Rd8 {[%clk 0:00:04]}  Nf3 {[%clk 0:00:37]} 49. Rxd5 {[%clk 0:00:04]}  Nxe5 {[%clk 0:00:34]} 50. dxe5 {[%clk 0:00:04]}  g3 {[%clk 0:00:29]} 51. Kg1 {[%clk 0:00:03]}  Kf5 {[%clk 0:00:27]} 52. Rd7 {[%clk 0:00:03]}  Ke6 {[%clk 0:00:17]} 53. Rd3 {[%clk 0:00:03]}  g2 {[%clk 0:00:15]} 54. Rf3 {[%clk 0:00:02]}  Ra2 {[%clk 0:00:11]} 55. Rf6+ {[%clk 0:00:01]}  Ke7 {[%clk 0:00:11]} 56. Kh2 {[%clk 0:00:01]}  Re2 {[%clk 0:00:10]} 57. Kg1 {[%clk 0:00:01]}  Rxe5 {[%clk 0:00:09]} 58. Rf2 {[%clk 0:00:01]}  Rg5 {[%clk 0:00:08]} 59. Re2+ {[%clk 0:00:01]}  Kf6 {[%clk 0:00:08]} 60. Rf2+ {[%clk 0:00:02]}  Kg6 {[%clk 0:00:08]} 61. Re2 {[%clk 0:00:03]}  Rg4 {[%clk 0:00:06]} 62. Rf2 {[%clk 0:00:03]}  Kg7 {[%clk 0:00:05]} 63. Re2 {[%clk 0:00:03]}  Rg3 {[%clk 0:00:06]} 64. Rf2 {[%clk 0:00:03]}  Rg6 {[%clk 0:00:06]} 65. Re2 {[%clk 0:00:04]}  Kf8 {[%clk 0:00:07]} 66. Rf2 {[%clk 0:00:05]}  Ke7 {[%clk 0:00:08]} 67. Re2+ {[%clk 0:00:05]}  Re6 {[%clk 0:00:08]} 68. Rf2 {[%clk 0:00:06]}  Rg6 {[%clk 0:00:07]} 69. Rd2 {[%clk 0:00:06]}  f5 {[%clk 0:00:06]} 70. Rxg2 {[%clk 0:00:05]}  Rb6 {[%clk 0:00:05]} 71. Ra2 {[%clk 0:00:03]}  Kf6 {[%clk 0:00:05]} 72. Kf2 {[%clk 0:00:04]}  Kg5 {[%clk 0:00:05]} 73. Ra4 {[%clk 0:00:04]}  Rb3 {[%clk 0:00:04]} 74. Ra8 {[%clk 0:00:03]}  Kf4 {[%clk 0:00:04]} 75. Ra4+ {[%clk 0:00:03]}  Kg5 {[%clk 0:00:05]} 76. Ra8 {[%clk 0:00:04]}  Kg4 {[%clk 0:00:05]} 77. Ra4+ {[%clk 0:00:03]}  f4 {[%clk 0:00:05]} 78. Ra8 {[%clk 0:00:03]}  Rb2+ {[%clk 0:00:06]} 79. Kf1 {[%clk 0:00:02]}  Kg3 {[%clk 0:00:06]} 0-1


[Site "https://www.chess.com"]

[Event "Titled Tuesday Blitz January 17 Late 2023"]
[White "Lopez Gracia, Fernando"]
[Black "Pershin, Denis"]
[WhiteFideId "2207184"]
[BlackFideId "24165506"]
[WhiteElo "2255"]
[BlackElo "2366"]
[Result "0-1"]
[Round "04"]
[TimeControl "180+2"]
[Date "2023.01.17"]
[WhiteClock "0:00:38"]
[BlackClock "0:01:21"]

1. c4 {[%clk 0:03:00]}  c5 {[%clk 0:02:57]} 2. Nf3 {[%clk 0:03:00]}  Nc6 {[%clk 0:02:57]} 3. d4 {[%clk 0:02:59]}  cxd4 {[%clk 0:02:58]} 4. Nxd4 {[%clk 0:02:59]}  Nf6 {[%clk 0:02:53]} 5. Nc3 {[%clk 0:02:57]}  e6 {[%clk 0:02:53]} 6. Nc2 {[%clk 0:02:53]}  Bc5 {[%clk 0:02:50]} 7. e3 {[%clk 0:02:52]}  O-O {[%clk 0:02:46]} 8. Be2 {[%clk 0:02:53]}  b6 {[%clk 0:02:47]} 9. O-O {[%clk 0:02:53]}  Bb7 {[%clk 0:02:47]} 10. Bf3 {[%clk 0:02:53]}  Qe7 {[%clk 0:02:41]} 11. b3 {[%clk 0:02:49]}  Rfd8 {[%clk 0:02:41]} 12. Bb2 {[%clk 0:02:45]}  d5 {[%clk 0:02:42]} 13. cxd5 {[%clk 0:02:45]}  Ne5 {[%clk 0:02:42]} 14. e4 {[%clk 0:02:25]}  Ba6 {[%clk 0:02:41]} 15. Be2 {[%clk 0:02:09]}  Bb7 {[%clk 0:02:41]} 16. Bf3 {[%clk 0:01:59]}  exd5 {[%clk 0:02:10]} 17. Nxd5 {[%clk 0:01:56]}  Nxf3+ {[%clk 0:02:09]} 18. Qxf3 {[%clk 0:01:52]}  Nxd5 {[%clk 0:02:10]} 19. exd5 {[%clk 0:01:51]}  Bxd5 {[%clk 0:02:11]} 20. Qg3 {[%clk 0:01:50]}  f6 {[%clk 0:01:46]} 21. Rfe1 {[%clk 0:01:47]}  Qf7 {[%clk 0:01:45]} 22. Ne3 {[%clk 0:01:47]}  Be6 {[%clk 0:01:37]} 23. Rad1 {[%clk 0:01:48]}  Bb4 {[%clk 0:01:35]} 24. Rxd8+ {[%clk 0:01:46]}  Rxd8 {[%clk 0:01:33]} 25. Rd1 {[%clk 0:01:46]}  Rxd1+ {[%clk 0:01:32]} 26. Nxd1 {[%clk 0:01:47]}  Qd7 {[%clk 0:01:29]} 27. Ne3 {[%clk 0:01:43]}  Bd6 {[%clk 0:01:29]} 28. Qh4 {[%clk 0:01:35]}  Bc5 {[%clk 0:01:30]} 29. h3 {[%clk 0:00:54]}  Qd2 {[%clk 0:01:26]} 30. Nc4 {[%clk 0:00:49]}  Qe1+ {[%clk 0:01:21]} 31. Kh2 {[%clk 0:00:48]}  Bxf2 {[%clk 0:01:21]} 32. Qf4 {[%clk 0:00:38]}  Qg1# {[%clk 0:01:21]} 0-1


[Site "https://www.chess.com"]

[Event "Titled Tuesday Blitz January 17 Late 2023"]
[White "Lymar, Vladislav"]
[Black "Pesotskiy, Mikhail"]
[WhiteFideId "14162180"]
[BlackFideId "34164453"]
[WhiteElo "2119"]
[BlackElo "2153"]
[Result "1-0"]
[Round "04"]
[TimeControl "180+2"]
[Date "2023.01.17"]
[WhiteClock "0:00:36"]
[BlackClock "0:00:01"]

1. e4 {[%clk 0:02:56]}  e6 {[%clk 0:02:59]} 2. Qe2 {[%clk 0:02:53]}  c5 {[%clk 0:02:59]} 3. Nf3 {[%clk 0:02:53]}  Nc6 {[%clk 0:03:00]} 4. g3 {[%clk 0:02:53]}  g6 {[%clk 0:03:00]} 5. Bg2 {[%clk 0:02:53]}  Bg7 {[%clk 0:03:01]} 6. c3 {[%clk 0:02:54]}  d6 {[%clk 0:03:02]} 7. O-O {[%clk 0:02:54]}  Nge7 {[%clk 0:03:03]} 8. d3 {[%clk 0:02:54]}  O-O {[%clk 0:03:03]} 9. Na3 {[%clk 0:02:51]}  Rb8 {[%clk 0:03:01]} 10. Nc2 {[%clk 0:02:48]}  b5 {[%clk 0:03:00]} 11. a3 {[%clk 0:02:47]}  a5 {[%clk 0:02:59]} 12. d4 {[%clk 0:02:44]}  b4 {[%clk 0:02:59]} 13. axb4 {[%clk 0:02:44]}  axb4 {[%clk 0:03:00]} 14. Be3 {[%clk 0:02:35]}  b3 {[%clk 0:02:28]} 15. Na3 {[%clk 0:02:29]}  cxd4 {[%clk 0:02:29]} 16. Nxd4 {[%clk 0:02:26]}  Nxd4 {[%clk 0:01:57]} 17. Bxd4 {[%clk 0:02:27]}  e5 {[%clk 0:01:58]} 18. Ba7 {[%clk 0:02:03]}  Ra8 {[%clk 0:01:54]} 19. Nc4 {[%clk 0:02:03]}  Be6 {[%clk 0:01:46]} 20. Nb6 {[%clk 0:01:31]}  Rxa7 {[%clk 0:01:38]} 21. Rxa7 {[%clk 0:01:32]}  Qxb6 {[%clk 0:01:39]} 22. Rxe7 {[%clk 0:01:32]}  Bf6 {[%clk 0:01:39]} 23. Rxe6 {[%clk 0:01:30]}  fxe6 {[%clk 0:01:40]} 24. Qc4 {[%clk 0:01:27]}  Bg5 {[%clk 0:00:59]} 25. Qxe6+ {[%clk 0:01:23]}  Kg7 {[%clk 0:01:00]} 26. h4 {[%clk 0:01:08]}  Bd2 {[%clk 0:00:40]} 27. h5 {[%clk 0:01:02]}  gxh5 {[%clk 0:00:16]} 28. Bh3 {[%clk 0:00:45]}  Rf7 {[%clk 0:00:05]} 29. Bf5 {[%clk 0:00:44]}  d5 {[%clk 0:00:01]} 30. Qxe5+ {[%clk 0:00:42]}  Qf6 {[%clk 0:00:01]} 31. Qxd5 {[%clk 0:00:36]} 1-0


[Site "https://www.chess.com"]